fUSD/lending_fUSD_20260218
["ID","MTS","AMOUNT","RATE_DAILY","PERIOD"]
[405949099,1771437046822,-500.0,0.0001405,2]
[405949100,1771437046834,-500.0,0.0001405,2]
[405949101,1771437046843,-600.0,0.0001405,2]
[405949102,1771437046853,-3073.81,0.0001405,2]
[405949103,1771437046863,-623.2,0.00014065,2]
[405949104,1771437046873,-3044.85,0.00014083,2]
[405949105,1771437046882,-2904.43,0.00014102,2]
[405949106,1771437046892,-201.3,0.00014169,2]
[405949107,1771437046901,-33900.52019867,0.00014181,2]
[405949108,1771437046910,-21223.49816196,0.00014214,2]
[405949109,1771437046920,-1000.0,0.00014219,7]
[405949110,1771437047076,-2221.57017581,0.0001423,2]
[405949111,1771437047086,-1563.93342337,0.0001423,2]
[405949112,1771437047097,-1000.0,0.00014275,2]
[405949113,1771437047106,-1000.0,0.00014275,2]
[405949114,1771437047115,-1000.0,0.00014275,2]
[405949115,1771437047124,-1000.0,0.00014275,2]
[405949116,1771437047134,-506.731515,0.00014275,2]
[405949117,1771437047143,-1000.0,0.00014275,2]
[405949118,1771437047152,-1000.0,0.00014275,2]
[405949119,1771437047161,-1000.0,0.00014275,2]
[405949120,1771437047171,-502.82966005,0.00014275,2]
[405949121,1771437047180,-1000.0,0.00014275,2]
[405949122,1771437047190,-1000.0,0.00014275,2]
[405949123,1771437047199,-918.80277405,0.00014275,2]
[405949124,1771437047209,-501.02884299,0.00014275,2]
[405949125,1771437047218,-1000.0,0.00014275,2]
[405949126,1771437047227,-513.56902932,0.00014275,2]
[405949127,1771437047237,-1000.0,0.00014275,2]
[405949128,1771437047247,-280.29764238,0.00014275,2]
[405949129,1771437047256,-1000.0,0.00014275,2]
[405949130,1771437047265,-1000.0,0.00014275,2]
[405949131,1771437047275,-1000.0,0.00014275,2]
[405949132,1771437047284,-1000.0,0.00014275,2]
[405949133,1771437047293,-1000.0,0.00014275,2]
[405949134,1771437047303,-201.94949342,0.00014275,2]
[405949135,1771437047312,-1000.0,0.00014275,2]
[405949136,1771437047321,-1000.0,0.00014275,2]
[405949137,1771437047331,-505.36008484,0.00014275,2]
[405949138,1771437047341,-1000.0,0.00014275,2]
[405949139,1771437047353,-1000.0,0.00014275,2]
[405949140,1771437047363,-1000.0,0.00014275,2]
[405949141,1771437047373,-1000.0,0.00014275,2]
[405949142,1771437047384,-151.0,0.00014634,2]
[405949143,1771437047395,-150.0,0.00014684,2]
[405949144,1771437047405,-595.96,0.00014739,2]
[405949145,1771437047415,-887.72,0.00014739,2]
[405949146,1771437047425,-1500.0,0.00014823,2]
[405949147,1771437047435,-1500.0,0.00014823,2]
[405949148,1771437047447,-1500.0,0.00014823,2]
[405949149,1771437047457,-773.82140708,0.00014823,2]
[405949150,1771437047467,-1000.0,0.00014823,2]
[405949151,1771437047477,-1500.0,0.00014823,2]
[405949152,1771437047488,-1500.0,0.00014823,2]
[405949153,1771437047498,-1500.0,0.00014823,2]
[405949154,1771437047511,-1140.426295,0.00014823,2]
[405949155,1771437047523,-1411.55685535,0.00014823,2]
[405949156,1771437047534,-1501.93175398,0.00014823,2]
[405949157,1771437047551,-1635.74092603,0.00014823,2]
[405949158,1771437047561,-1500.0,0.00014823,2]
[405949159,1771437047572,-1060.97294517,0.00014823,2]
[405949160,1771437047584,-1500.0,0.00014823,2]
[405949161,1771437047596,-1500.0,0.00014823,2]
[405949162,1771437047606,-1500.0,0.00014823,2]
[405949163,1771437047617,-1500.0,0.00014823,2]
[405949164,1771437047629,-1500.0,0.00014823,2]
[405949165,1771437047639,-1500.0,0.00014823,2]
[405949166,1771437047649,-1500.0,0.00014823,2]
[405949167,1771437047662,-500.0,0.00014904,2]
[405949168,1771437047678,-500.0,0.00014904,2]
[405949169,1771437047688,-500.0,0.00014904,2]
[405949170,1771437047699,-207.45341445,0.00014904,2]
[405949171,1771437047709,-500.0,0.00014904,2]
[405949172,1771437047719,-500.0,0.00014904,2]
[405949173,1771437047731,-500.0,0.00014904,2]
[405949174,1771437047739,-500.0,0.00014904,2]
[405949175,1771437047749,-500.0,0.00014904,2]
[405949176,1771437047758,-500.0,0.00014904,2]
[405949177,1771437047767,-500.0,0.00014904,2]
[405949178,1771437047777,-500.0,0.00014904,2]
[405949179,1771437047786,-500.0,0.00014904,2]
[405949180,1771437047795,-529.04,0.00015034,2]
[405949181,1771437047804,-301.98,0.00015339,2]
[405949182,1771437047814,-500.0,0.00015367,2]
[405949183,1771437047823,-2000.0,0.00015371,2]
[405949184,1771437047832,-162.22203978,0.00015371,2]
[405949185,1771437047841,-501.69884993,0.00015371,2]
[405949186,1771437047851,-511.89545395,0.00015371,2]
[405949187,1771437047860,-500.0,0.00015371,2]
[405949188,1771437047869,-348.88505806,0.00015371,2]
[405949189,1771437047878,-2000.0,0.00015371,2]
[405949190,1771437047888,-2000.0,0.00015371,2]
[405949191,1771437047897,-2036.10393399,0.00015371,2]
[405949192,1771437047906,-192.85283733,0.00015371,2]
[405949193,1771437047916,-2000.0,0.00015371,2]
[405949194,1771437047926,-2000.0,0.00015371,2]
[405949195,1771437047935,-2003.61068261,0.00015371,2]
[405949196,1771437047944,-33900.52019867,0.00015411,2]
[405949197,1771437047954,-21223.49816196,0.00015433,2]
[405949198,1771437047967,-623.2,0.00015599,2]
[405949199,1771437047977,-200.0,0.00015647,2]
[405949200,1771437047988,-600.0,0.00015702,2]
[405949201,1771437047999,-600.0,0.00015702,2]
[405949202,1771437048010,-201.93,0.00015702,2]
[405949203,1771437048023,-500.0,0.00015919,2]
[405949204,1771437048034,-2172.5147362,0.00015919,2]
[405949205,1771437048044,-1000.0,0.00015919,2]
[405949206,1771437048055,-2500.0,0.00015919,2]
[405949207,1771437048066,-500.0,0.00015919,2]
[405949208,1771437048077,-500.0,0.00015993,2]
[405949209,1771437048087,-500.0,0.00015993,2]
[405949210,1771437048097,-500.0,0.00015993,2]
[405949211,1771437048107,-500.0,0.00015993,2]
[405949212,1771437048118,-500.0,0.00015993,2]
[405949213,1771437048127,-500.0,0.00015993,2]
[405949214,1771437048137,-500.0,0.00015993,2]
[405949215,1771437048146,-500.0,0.00015993,2]
[405949216,1771437048155,-500.0,0.00015993,2]
[405949217,1771437048164,-578.20924308,0.00015993,2]
[405949218,1771437048174,-500.0,0.00015993,2]
[405949219,1771437048183,-308.62455366,0.00015993,2]
[405949220,1771437048192,-500.0,0.00015993,2]
[405949221,1771437048201,-250.0,0.00015993,2]
[405949222,1771437048211,-500.0,0.00015993,2]
[405949223,1771437048220,-250.0,0.00015993,2]
[405949224,1771437048229,-500.0,0.00015993,2]
[405949225,1771437048238,-250.0,0.00015993,2]
[405949226,1771437048247,-174.61919141,0.00015993,2]
[405949227,1771437048256,-500.0,0.00015993,2]
[405949228,1771437048265,-250.0,0.00015993,2]
[405949229,1771437048274,-500.0,0.00015993,2]
[405949230,1771437048284,-250.0,0.00015993,2]
[405949231,1771437048293,-250.0,0.00015993,2]
[405949232,1771437048302,-500.0,0.00015993,2]
[405949233,1771437048311,-250.0,0.00015993,2]
[405949234,1771437048320,-500.0,0.00015993,2]
[405949235,1771437048330,-255.07259394,0.00015993,2]
[405949236,1771437048340,-500.0,0.00015993,2]
[405949237,1771437048350,-500.0,0.00015993,2]
[405949238,1771437048359,-500.0,0.00015993,2]
[405949239,1771437048368,-162.380719,0.00015993,2]
[405949240,1771437048379,-151.0,0.00015993,2]
[405949241,1771437048388,-288.82629962,0.00015993,2]
[405949242,1771437048397,-166.00545754,0.00015993,2]
[405949243,1771437048406,-1000.0,0.00015993,2]
[405949244,1771437048416,-1000.0,0.00015993,2]
[405949245,1771437048425,-1000.0,0.00015993,2]
[405949246,1771437048434,-798.00068592,0.00015993,2]
[405949247,1771437048443,-693.3919763,0.00015993,2]
[405949248,1771437048452,-277.35679052,0.00015993,2]
[405949249,1771437048462,-151.0,0.00016048,2]
[405949250,1771437048471,-719.04747942,0.00016048,2]
[405949251,1771437048480,-507.0,0.0001605,2]
[405949252,1771437048490,-151.0,0.00016103,2]
[405949253,1771437048499,-745.65223616,0.00016103,2]
[405949254,1771437048508,-9999.99,0.00016116,2]
[405949255,1771437048517,-23735.44,0.00016116,2]
[405949256,1771437048527,-9999.99,0.00016116,2]
[405949257,1771437048536,-151.0,0.00016158,2]
[405949258,1771437048549,-773.2413689,0.00016158,2]
[405949259,1771437048558,-151.0,0.00016213,2]
[405949260,1771437048567,-801.85129955,0.00016213,2]
[405949261,1771437048577,-271.22537401,0.00016268,2]
[405949262,1771437048587,-831.51979763,0.00016268,2]
[405949263,1771437048596,-862.28603014,0.00016323,2]
[405949264,1771437048605,-894.19061326,0.00016378,2]
[405949265,1771437048615,-927.27566595,0.00016433,2]
[405949266,1771437048624,-266.3746021,0.00016438,2]
[405949267,1771437048634,-3000.0,0.00016467,2]
[405949268,1771437048643,-961.58486559,0.00016488,2]
[405949269,1771437048652,-181.08010149,0.00016541,2]
[405949270,1771437048661,-287.61899177,0.00016541,2]
[405949271,1771437048671,-997.16350561,0.00016543,2]
[405949272,1771437048680,-33900.52019867,0.00016641,2]
[405949273,1771437048689,-21223.49816196,0.00016652,2]
[405949274,1771437048699,-167.05,0.00016712,2]
[405949275,1771437048708,-1000.0,0.00016719,2]
[405949276,1771437048717,-160.0,0.0001672,2]
[405949277,1771437048726,-1000.0,0.00016777,2]
[405949278,1771437048735,-1000.0,0.00016795,2]
[405949279,1771437048744,-1000.0,0.00016802,2]
[405949280,1771437048753,-1000.0,0.00016816,2]
[405949281,1771437048762,-1000.0,0.00016838,2]
[405949282,1771437048771,-1000.0,0.00016857,2]
[405949283,1771437048780,-1000.0,0.00016859,2]
[405949284,1771437048789,-1000.0,0.00016879,2]
[405949285,1771437048798,-1000.0,0.00016884,2]
[405949286,1771437048808,-1000.0,0.00016911,2]
[405949287,1771437048817,-1000.0,0.00016911,2]
[405949288,1771437048826,-595.96,0.00016921,2]
[405949289,1771437048835,-887.72,0.00016921,2]
[405949290,1771437048843,-37237.52246235,0.00016941,2]
[405949291,1771437048852,-1000.0,0.00016985,2]
[405949292,1771437048862,-1000.0,0.00016986,2]
[405949293,1771437048872,-1000.0,0.0001699,2]
[405949294,1771437048880,-507.0,0.00016991,2]
[405949295,1771437048890,-1000.0,0.00017008,2]
[405949296,1771437048899,-1000.0,0.0001701,2]
[405949297,1771437048908,-3500.0,0.00017015,2]
[405949298,1771437048918,-1000.0,0.00017018,2]
[405949299,1771437048927,-1000.0,0.00017025,2]
[405949300,1771437048936,-1000.0,0.00017034,2]
[405949301,1771437048945,-2836.0,0.0001704,2]
[405949302,1771437048954,-1000.0,0.0001704,2]
[405949303,1771437048963,-1000.0,0.0001704,2]
[405949304,1771437048972,-2836.0,0.0001705,2]
[405949305,1771437048982,-1000.0,0.00017066,2]
[405949306,1771437048991,-1000.0,0.00017072,2]
[405949307,1771437049001,-1000.0,0.00017081,2]
[405949308,1771437049010,-187.78006525,0.00017089,2]
[405949309,1771437049019,-298.26089446,0.00017089,2]
[405949310,1771437049028,-1000.0,0.00017093,2]
[405949311,1771437049038,-1000.0,0.00017107,2]
[405949312,1771437049047,-1000.0,0.00017112,2]
[405949313,1771437049056,-1000.0,0.0001713,2]
[405949314,1771437049065,-1000.0,0.00017169,2]
[405949315,1771437049074,-1000.0,0.00017179,2]
[405949316,1771437049083,-1000.0,0.000172,2]
[405949317,1771437049093,-150.0,0.00017208,2]
[405949318,1771437049102,-1000.0,0.00017216,2]
[405949319,1771437049111,-1000.0,0.0001722,2]
[405949320,1771437049120,-150.0,0.00017232,2]
[405949321,1771437049129,-1000.0,0.00017233,2]
[405949322,1771437049138,-623.2,0.0001724,2]
[405949323,1771437049147,-1000.0,0.00017243,2]
[405949324,1771437049156,-1000.0,0.00017253,2]
[405949325,1771437049166,-150.0,0.00017267,2]
[405949326,1771437049175,-150.0,0.00017273,2]
[405949327,1771437049185,-350.0,0.00017279,2]
[405949328,1771437049194,-1000.0,0.00017282,2]
[405949329,1771437049203,-1000.0,0.00017283,2]
[405949330,1771437049212,-1000.0,0.00017319,2]
[405949331,1771437049222,-1000.0,0.00017343,2]
[405949332,1771437049231,-1000.0,0.00017353,2]
[405949333,1771437049240,-150.0,0.00017354,2]
[405949334,1771437049250,-201.32,0.00017354,2]
[405949335,1771437049260,-168.3888056,0.00017362,2]
[405949336,1771437049269,-235.13,0.00017367,2]
[405949337,1771437049278,-1000.0,0.00017384,2]
[405949338,1771437049288,-150.0,0.00017395,2]
[405949339,1771437049298,-1000.0,0.00017396,2]
[405949340,1771437049307,-150.0,0.00017407,2]
[405949341,1771437049316,-1000.0,0.00017414,2]
[405949342,1771437049325,-235.13,0.00017416,2]
[405949343,1771437049334,-150.0,0.0001743,2]
[405949344,1771437049343,-1000.0,0.00017434,2]
[405949345,1771437049352,-150.0,0.0001744,2]
[405949346,1771437049367,-1000.0,0.00017441,2]
[405949347,1771437049376,-150.0,0.0001745,2]
[405949348,1771437049385,-1000.0,0.00017452,2]
[405949349,1771437049395,-1000.0,0.00017453,2]
[405949350,1771437049404,-150.0,0.00017458,2]
[405949351,1771437049414,-235.1211744,0.00017465,2]
[405949352,1771437049423,-1000.0,0.00017469,2]
[405949353,1771437049432,-150.0,0.00017485,2]
[405949354,1771437049442,-1000.0,0.00017493,2]
[405949355,1771437049490,-1080.27787936,0.00017494,2]
[405949356,1771437049498,-500.0,0.00017499,2]
[405949357,1771437049507,-500.0,0.00017499,2]
[405949358,1771437049517,-500.0,0.00017499,2]
[405949359,1771437049525,-500.0,0.00017499,2]
[405949360,1771437049534,-500.0,0.00017499,2]
[405949361,1771437049546,-500.0,0.00017499,2]
[405949362,1771437049555,-500.0,0.00017499,2]
[405949363,1771437049564,-500.0,0.00017499,2]
[405949364,1771437049573,-500.0,0.00017499,2]
[405949365,1771437049583,-501.1551627,0.00017499,2]
[405949366,1771437049592,-500.0,0.00017499,2]
[405949367,1771437049600,-500.0,0.00017499,2]
[405949368,1771437049610,-150.0,0.00017513,2]
[405949369,1771437049620,-1000.0,0.00017514,2]
[405949370,1771437049630,-1000.0,0.00017521,2]
[405949371,1771437049639,-1000.0,0.00017525,2]
[405949372,1771437049648,-150.0,0.00017527,2]
[405949373,1771437049658,-1000.0,0.00017528,2]
[405949374,1771437049667,-1000.0,0.00017529,2]
[405949375,1771437049676,-1000.0,0.00017536,2]
[405949376,1771437049685,-1000.0,0.00017542,2]
[405949377,1771437049694,-1000.0,0.00017549,2]
[405949378,1771437049703,-150.0,0.00017562,2]
[405949379,1771437049712,-4000.0,0.00017563,2]
[405949380,1771437049722,-1000.0,0.00017563,2]
[405949381,1771437049731,-1000.0,0.00017577,2]
[405949382,1771437049741,-1000.0,0.00017587,2]
[405949383,1771437049750,-1000.0,0.00017592,2]
[405949384,1771437049760,-500.0,0.00017599,2]
[405949385,1771437049769,-300.0,0.00017602,2]
[405949386,1771437049778,-1000.0,0.00017607,2]
[405949387,1771437049787,-150.0,0.00017607,2]
[405949388,1771437049797,-150.0,0.00017616,2]
[405949389,1771437049807,-150.0,0.0001762,2]
[405949390,1771437049815,-1000.0,0.00017623,2]
[405949391,1771437049824,-150.0,0.00017628,2]
[405949392,1771437049834,-194.72792766,0.00017637,2]
[405949393,1771437049843,-309.29654756,0.00017637,2]
[405949394,1771437049851,-4207.67642787,0.0001764,2]
[405949395,1771437049861,-1000.0,0.00017643,2]
[405949396,1771437049872,-150.0,0.00017664,2]
[405949397,1771437049883,-3402.0,0.0001767,2]
[405949398,1771437049892,-1000.0,0.00017674,2]
[405949399,1771437049903,-150.0,0.00017682,2]
[405949400,1771437049913,-1000.0,0.00017684,2]
[405949401,1771437049922,-1000.0,0.00017685,2]
[405949402,1771437049932,-150.0,0.00017698,2]
[405949403,1771437049941,-1582.1457329,0.000177,2]
[405949404,1771437049951,-1697.261,0.000177,2]
[405949405,1771437049961,-172.93,0.000177,2]
[405949406,1771437049971,-150.0,0.000177,2]
[405949407,1771437049981,-1100.0,0.000177,6]
[405949408,1771437049992,-2000.0,0.000177,2]
[405949409,1771437050002,-1000.0,0.00017702,2]
[405949410,1771437050012,-150.0,0.00017724,2]
[405949411,1771437050022,-1000.0,0.00017732,2]
[405949412,1771437050032,-600.0,0.0001774,2]
[405949413,1771437050041,-1000.0,0.0001774,2]
[405949414,1771437050051,-1000.0,0.00017746,2]
[405949415,1771437050062,-150.0,0.00017747,2]
[405949416,1771437050071,-1000.0,0.00017748,2]
[405949417,1771437050080,-600.0,0.00017754,2]
[405949418,1771437050089,-1000.0,0.00017754,2]
[405949419,1771437050098,-1000.0,0.00017757,2]
[405949420,1771437050107,-1000.0,0.00017758,2]
[405949421,1771437050117,-150.0,0.00017762,2]
[405949422,1771437050126,-600.0,0.00017768,2]
[405949423,1771437050136,-1000.0,0.00017769,2]
[405949424,1771437050147,-1000.0,0.00017777,2]
[405949425,1771437050157,-150.0,0.00017785,2]
[405949426,1771437050166,-1000.0,0.00017788,2]
[405949427,1771437050175,-1000.0,0.00017792,2]
[405949428,1771437050184,-1100.0,0.000178,6]
[405949429,1771437050194,-616.0,0.00017808,2]
[405949430,1771437050204,-800.0,0.00017808,2]
[405949431,1771437050214,-150.0,0.00017812,2]
[405949432,1771437050224,-2000.0,0.0001782,2]
[405949433,1771437050235,-2000.0,0.0001782,2]
[405949434,1771437050244,-3402.0,0.00017823,2]
[405949435,1771437050254,-1000.0,0.00017825,2]
[405949436,1771437050264,-150.0,0.00017826,2]
[405949437,1771437050275,-150.0,0.00017827,2]
[405949438,1771437050286,-1000.0,0.00017838,2]
[405949439,1771437050296,-150.0,0.00017849,2]
[405949440,1771437050305,-150.0,0.00017853,2]
[405949441,1771437050315,-200.0,0.00017856,2]
[405949442,1771437050325,-616.0,0.00017863,2]
[405949443,1771437050335,-150.0,0.00017863,2]
[405949444,1771437050345,-1000.0,0.00017864,2]
[405949445,1771437050354,-1000.0,0.00017868,2]
[405949446,1771437050363,-21223.49816196,0.00017871,2]
[405949447,1771437050374,-33900.52019867,0.00017871,2]
[405949448,1771437050385,-150.0,0.00017877,2]
[405949449,1771437050395,-150.0,0.00017882,2]
[405949450,1771437050404,-1000.0,0.00017896,2]
[405949451,1771437050413,-3402.0,0.00017896,2]
[405949452,1771437050423,-150.06482412,0.00017897,2]
[405949453,1771437050432,-500.0,0.00017899,2]
[405949454,1771437050441,-500.0,0.00017899,2]
[405949455,1771437050450,-500.0,0.00017899,2]
[405949456,1771437050460,-500.0,0.00017899,2]
[405949457,1771437050469,-500.0,0.00017899,2]
[405949458,1771437050478,-500.0,0.00017899,2]
[405949459,1771437050487,-500.0,0.00017899,2]
[405949460,1771437050496,-500.0,0.00017899,2]
[405949461,1771437050505,-506.43974224,0.00017899,2]
[405949462,1771437050513,-500.0,0.00017899,2]
[405949463,1771437050522,-500.0,0.00017899,2]
[405949464,1771437050531,-500.0,0.00017899,2]
[405949465,1771437050542,-1000.0,0.000179,2]
[405949466,1771437050553,-517.34793536,0.000179,2]
[405949467,1771437050562,-1100.0,0.000179,6]
[405949468,1771437050571,-1000.0,0.00017902,2]
[405949469,1771437050580,-1000.0,0.00017902,2]
[405949470,1771437050590,-150.0,0.00017908,2]
[405949471,1771437050599,-150.0,0.00017912,2]
[405949472,1771437050608,-616.0,0.00017918,2]
[405949473,1771437050618,-150.0,0.00017918,2]
[405949474,1771437050628,-1000.0,0.00017927,2]
[405949475,1771437050637,-1000.0,0.00017927,2]
[405949476,1771437050646,-150.0,0.00017928,2]
[405949477,1771437050656,-507.0,0.00017931,3]
[405949478,1771437050665,-150.0,0.00017932,2]
[405949479,1771437050674,-150.0,0.00017945,2]
[405949480,1771437050683,-1000.0,0.00017951,2]
[405949481,1771437050692,-150.0,0.00017956,2]
[405949482,1771437050701,-1000.0,0.0001796,2]
[405949483,1771437050711,-151.0,0.00017968,2]
[405949484,1771437050720,-150.0,0.00017969,2]
[405949485,1771437050729,-300.0,0.0001797,2]
[405949486,1771437050739,-300.0,0.0001797,2]
[405949487,1771437050749,-400.0,0.0001797,2]
[405949488,1771437050760,-400.0,0.0001797,2]
[405949489,1771437050770,-400.0,0.0001797,2]
[405949490,1771437050779,-400.0,0.0001797,2]
[405949491,1771437050788,-602.41999999,0.0001797,2]
[405949492,1771437050798,-595.96,0.0001797,2]
[405949493,1771437050807,-595.96,0.0001797,2]
[405949494,1771437050816,-595.96,0.0001797,2]
[405949495,1771437050825,-887.72,0.0001797,2]
[405949496,1771437050834,-887.72,0.0001797,2]
[405949497,1771437050844,-887.72,0.0001797,2]
[405949498,1771437050853,-623.2,0.0001797,2]
[405949499,1771437050862,-623.2,0.0001797,2]
[405949500,1771437050871,-515285.7862903,0.00017971,2]
[405949501,1771437050879,-28962.2418563,0.00017971,2]
[405949502,1771437050890,-12386.1905412,0.00017971,2]
[405949503,1771437050899,-1000.0,0.00017972,2]
[405949504,1771437050908,-616.0,0.00017972,2]
[405949505,1771437050917,-150.0,0.00017977,2]
[405949506,1771437050926,-1000.0,0.00017979,2]
[405949507,1771437050935,-150.0,0.0001798,2]
[405949508,1771437050944,-1000.0,0.00017981,2]
[405949509,1771437050954,-623.2,0.00017985,2]
[405949510,1771437050962,-350.0,0.00017985,4]
[405949511,1771437050972,-176.04753717,0.00017986,2]
[405949512,1771437050981,-1000.0,0.00017987,2]
[405949513,1771437050990,-12639.8578316,0.00017989,2]
[405949514,1771437050999,-1723.91274362,0.0001799,2]
[405949515,1771437051009,-1000.0,0.00017993,2]
[405949516,1771437051019,-500.0,0.00017997,2]
[405949517,1771437051028,-500.0,0.00017997,2]
[405949518,1771437051037,-500.0,0.00017997,2]
[405949519,1771437051047,-500.0,0.00017997,2]
[405949520,1771437051056,-500.0,0.00017997,2]
[405949521,1771437051066,-500.0,0.00017997,2]
[405949522,1771437051075,-500.0,0.00017997,2]
[405949523,1771437051084,-500.0,0.00017997,2]
[405949524,1771437051094,-500.0,0.00017997,2]
[405949525,1771437051103,-500.0,0.00017997,2]
[405949526,1771437051112,-500.0,0.00017997,2]
[405949527,1771437051122,-500.0,0.00017997,2]
[405949528,1771437051131,-500.0,0.00017997,2]
[405949529,1771437051140,-500.0,0.00017997,2]
[405949530,1771437051150,-500.0,0.00017997,2]
[405949531,1771437051159,-500.0,0.00017997,2]
[405949532,1771437051169,-500.0,0.00017997,2]
[405949533,1771437051178,-500.0,0.00017997,2]
[405949534,1771437051187,-500.0,0.00017997,2]
[405949535,1771437051196,-551.5455423,0.00017997,2]
[405949536,1771437051206,-626.40473759,0.00017997,2]
[405949537,1771437051215,-500.0,0.00017997,2]
[405949538,1771437051224,-500.0,0.00017997,2]
[405949539,1771437051233,-464.29440353,0.00017997,2]
[405949540,1771437051242,-500.0,0.00017997,2]
[405949541,1771437051251,-500.0,0.00017997,2]
[405949542,1771437051260,-500.0,0.00017997,2]
[405949543,1771437051269,-1000.0,0.00017997,2]
[405949544,1771437051279,-500.0,0.00017997,2]
[405949545,1771437051288,-500.0,0.00017997,2]
[405949546,1771437051298,-500.0,0.00017997,2]
[405949547,1771437051307,-151.0,0.00017997,2]
[405949548,1771437051316,-500.0,0.00017999,2]
[405949549,1771437051325,-500.0,0.00017999,2]
[405949550,1771437051334,-500.0,0.00017999,2]
[405949551,1771437051343,-606.7053454,0.00017999,2]
[405949552,1771437051353,-500.0,0.00017999,2]
[405949553,1771437051362,-500.0,0.00017999,2]
[405949554,1771437051372,-500.0,0.00017999,2]
[405949555,1771437051381,-500.0,0.00017999,2]
[405949556,1771437051389,-500.0,0.00017999,2]
[405949557,1771437051398,-500.0,0.00017999,2]
[405949558,1771437051407,-500.0,0.00017999,2]
[405949559,1771437051417,-500.0,0.00017999,2]
[405949560,1771437051426,-500.0,0.00017999,2]
[405949561,1771437051435,-500.0,0.00017999,2]
[405949562,1771437051444,-500.0,0.00017999,2]
[405949563,1771437051453,-500.0,0.00017999,2]
[405949564,1771437051462,-500.0,0.00017999,2]
[405949565,1771437051471,-500.0,0.00017999,2]
[405949566,1771437051480,-500.0,0.00017999,2]
[405949567,1771437051489,-216.12,0.00017999,2]
[405949568,1771437051498,-500.0,0.00017999,2]
[405949569,1771437051507,-500.0,0.00017999,2]
[405949570,1771437051517,-500.0,0.00017999,2]
[405949571,1771437051526,-500.0,0.00017999,2]
[405949572,1771437051535,-500.0,0.00017999,2]
[405949573,1771437051548,-500.0,0.00017999,2]
[405949574,1771437051557,-500.0,0.00017999,2]
[405949575,1771437051567,-620.1235705,0.00017999,2]
[405949576,1771437051576,-300.0,0.00017999,2]
[405949577,1771437051586,-595.96,0.00017999,2]
[405949578,1771437051596,-595.96,0.00017999,2]
[405949579,1771437051606,-595.96,0.00017999,2]
[405949580,1771437051617,-595.96,0.00017999,2]
[405949581,1771437051627,-595.96,0.00017999,2]
[405949582,1771437051636,-595.96,0.00017999,2]
[405949583,1771437051647,-595.96,0.00017999,2]
[405949584,1771437051657,-595.96,0.00017999,2]
[405949585,1771437051667,-595.96,0.00017999,2]
[405949586,1771437051677,-595.96,0.00017999,2]
[405949587,1771437051687,-595.96,0.00017999,2]
[405949588,1771437051698,-595.96,0.00017999,2]
[405949589,1771437051708,-595.96,0.00017999,2]
[405949590,1771437051718,-595.96,0.00017999,2]
[405949591,1771437051728,-595.96,0.00017999,2]
[405949592,1771437051738,-596.12047002,0.00017999,2]
[405949593,1771437051747,-887.72,0.00017999,2]
[405949594,1771437051758,-887.72,0.00017999,2]
[405949595,1771437051767,-887.72,0.00017999,2]
[405949596,1771437051777,-887.72,0.00017999,2]
[405949597,1771437051786,-887.72,0.00017999,2]
[405949598,1771437051797,-887.72,0.00017999,2]